bitfinex/quotes_ETHUSD_20250505
["timestamp","ask_amount","ask_price","bid_price","bid_amount"]
[1746457684350,5.52194334,1811.0,1810.8,0.7846]
[1746457684646,5.52211607,1810.9,1810.8,6.73937638]
[1746457684946,5.52210027,1811.0,1810.8,8.02731402]
[1746457685528,4.766,1811.4,1810.9,3.0]
[1746457685713,4.766,1811.4,1810.9,9.14]
[1746457685714,5.52143526,1811.2,1810.9,9.14]
[1746457686047,5.52143526,1811.2,1811.0,5.95477638]
[1746457686244,5.52104156,1811.3,1811.1,0.7861]
[1746457686431,5.52104156,1811.3,1811.1,1.46018764]
[1746457686818,5.52076374,1811.4,1811.1,10.60018764]
[1746457687127,5.52076374,1811.4,1811.2,6.14]
[1746457687328,11.04159119,1811.4,1811.2,6.14]
[1746457687514,5.52076374,1811.4,1811.2,12.09477638]
[1746457687826,5.52089659,1811.3,1811.2,13.75579359]
[1746457688550,5.52072995,1811.4,1811.2,13.75579359]
[1746457689012,11.04155866,1811.4,1811.2,13.75579359]
[1746457689217,5.52089659,1811.3,1811.2,7.80101721]
[1746457690138,5.52072995,1811.4,1811.2,7.80101721]
[1746457690667,5.52072995,1811.4,1811.3,6.14]
[1746457692263,5.52211607,1810.9,1810.8,6.14]
[1746457692464,5.52189272,1811.0,1810.8,9.14]
[1746457692825,5.52211607,1810.9,1810.8,9.14]
[1746457693150,5.5220274,1811.0,1810.8,9.14]
[1746457693332,5.52211607,1810.9,1810.8,9.14]
[1746457694076,5.52201255,1811.0,1810.8,9.14]
[1746457694668,5.52167644,1811.1,1810.8,11.20560764]
[1746457694844,5.52128404,1811.2,1810.9,5.95477638]
[1746457695045,5.52069868,1811.4,1811.1,5.95477638]
[1746457695277,5.52090243,1811.3,1811.2,6.14]
[1746457695787,5.52069868,1811.4,1811.2,6.14]
[1746457696980,5.52089659,1811.3,1811.2,6.14]
[1746457697986,5.52054639,1811.5,1811.3,1.3343]
[1746457698169,5.52099645,1811.3,1811.1,12.87907638]
[1746457698480,5.5205987,1811.4,1811.1,14.16698402]
[1746457698868,5.52041034,1811.5,1811.1,19.68847768]
[1746457699378,5.52061982,1811.4,1811.1,14.16698402]
[1746457699581,5.52040091,1811.5,1811.2,0.55]
[1746457700271,11.04095644,1811.5,1811.2,0.55]
[1746457700783,5.52107297,1811.3,1811.1,12.87907638]
[1746457700982,5.52107297,1811.3,1811.2,6.14]
[1746457706082,5.52133866,1811.2,1811.1,3.0]
[1746457706300,5.52103398,1811.3,1811.1,3.0]
[1746457706603,5.52103398,1811.3,1811.1,10.41877638]
[1746457706984,5.52103398,1811.3,1811.1,3.0]
[1746457706985,5.52120141,1811.2,1811.1,3.0]
[1746457707576,5.52150626,1811.1,1811.0,6.14]
[1746457711010,5.52005324,1811.6,1811.1,3.8157]
[1746457711011,5.52068624,1811.4,1811.1,3.8157]
[1746457711169,5.52068624,1811.4,1811.1,9.77047638]
[1746457711380,5.52016094,1811.6,1811.3,5.95477638]
[1746457711698,5.5205918,1811.4,1811.3,6.14]
[1746457712103,5.52040003,1811.5,1811.3,6.14]
[1746457712501,5.5205918,1811.4,1811.3,6.14]
[1746457713890,5.52014361,1811.6,1811.3,6.754]
[1746457714403,5.52029197,1811.5,1811.3,6.754]
[1746457715230,5.52014361,1811.6,1811.3,6.754]
[1746457715518,5.52029175,1811.5,1811.3,6.754]
[1746457717818,5.5205918,1811.4,1811.3,6.754]
[1746457718212,5.52029175,1811.5,1811.3,6.754]
[1746457718730,5.52013692,1811.6,1811.3,6.754]
[1746457718925,5.52013692,1811.6,1811.4,1.4851]
[1746457719150,5.52013692,1811.6,1811.4,0.6754]
[1746457719506,5.52028705,1811.5,1811.4,0.6754]
[1746457719699,5.52028705,1811.5,1811.2,12.47089211]
[1746457719899,5.52013692,1811.6,1811.2,12.47089211]
[1746457720193,5.5203925,1811.5,1811.2,12.47089211]
[1746457720708,3.72330832,1812.1,1811.4,5.95477638]
[1746457720908,5.51938283,1811.8,1811.6,5.95477638]
[1746457721115,5.51967765,1811.7,1811.5,7.48987764]
[1746457721331,5.51967765,1811.7,1811.6,6.14]
[1746457721720,5.51958502,1811.8,1811.6,6.14]
[1746457722940,5.5188924,1812.0,1811.6,11.65996662]
[1746457723107,5.51919888,1811.9,1811.7,7.30599666]
[1746457724032,11.03850408,1811.9,1811.7,7.30599666]
[1746457724241,5.51919888,1811.9,1811.7,7.30599666]
[1746457725333,11.03851445,1811.9,1811.7,7.30599666]
[1746457725499,5.51919888,1811.9,1811.7,7.30599666]
[1746457725705,5.51937299,1811.8,1811.7,7.30599666]
[1746457727339,5.51937299,1811.8,1811.7,6.14]
[1746457728006,11.0385451,1811.9,1811.7,6.14]
[1746457728205,5.51919888,1811.9,1811.7,6.14]
[1746457728624,5.51921872,1811.9,1811.7,6.14]
[1746457728829,5.51893233,1812.0,1811.7,6.14]
[1746457729029,5.51915626,1811.9,1811.8,0.614]
[1746457730143,5.51915626,1811.9,1811.8,0.564]
[1746457730440,5.51893233,1812.0,1811.7,6.14]
[1746457730640,5.51911226,1811.9,1811.7,6.14]
[1746457732150,5.51937299,1811.8,1811.7,6.14]
[1746457735208,5.51911226,1811.9,1811.7,6.14]
[1746457735409,5.51888303,1812.0,1811.7,6.14]
[1746457735632,5.51888303,1812.0,1811.8,9.34747084]
[1746457736024,5.51906838,1811.9,1811.8,9.34747084]
[1746457737044,5.51906838,1811.9,1811.8,6.14]
[1746457738644,5.51906838,1811.9,1811.7,6.14]
[1746457739148,5.51937299,1811.8,1811.7,6.14]
[1746457744363,5.52028705,1811.5,1811.4,7.758]
[1746457744541,5.5198804,1811.7,1811.4,3.0]
[1746457744752,11.03985814,1811.7,1811.5,3.20747084]
[1746457744927,5.51998233,1811.6,1811.5,3.20747084]
[1746457745445,5.52119977,1811.3,1811.0,6.9459]
[1746457745649,5.5207782,1811.4,1811.1,9.34747084]
[1746457746227,5.52039035,1811.5,1811.1,9.34747084]
[1746457746558,5.5205918,1811.4,1811.3,3.20747084]
[1746457746736,5.52039035,1811.5,1811.1,12.34747084]
[1746457746737,5.52120141,1811.2,1811.1,12.34747084]
[1746457748366,5.52150626,1811.1,1811.0,6.14]
[1746457749258,5.52211607,1810.9,1810.8,3.20747084]
[1746457749771,5.52138689,1811.2,1810.9,3.8068]
[1746457750063,11.04285869,1811.2,1811.0,3.20747084]
[1746457750231,5.52150626,1811.1,1811.0,3.20747084]
[1746457750632,5.52138689,1811.2,1811.0,3.20747084]
[1746457751065,5.52150626,1811.1,1811.0,3.20747084]
[1746457752067,5.52138689,1811.2,1811.0,3.20747084]
[1746457752239,11.04288708,1811.2,1811.0,3.20747084]
[1746457752434,5.52150626,1811.1,1811.0,3.20747084]
[1746457752634,5.52150626,1811.1,1810.8,9.34747084]
[1746457752635,5.52211607,1810.9,1810.8,9.34747084]
[1746457752864,5.52242102,1810.8,1810.6,3.20747084]
[1746457753063,5.52181115,1811.0,1810.6,3.20747084]
[1746457753241,5.52272601,1810.7,1810.6,3.20747084]
[1746457754334,5.52333609,1810.5,1810.4,6.14]
[1746457754531,5.5239463,1810.3,1810.2,6.14]
[1746457755035,5.52455665,1810.1,1810.0,3.72018657]
[1746457757455,8.52455665,1810.1,1810.0,3.72018657]
[1746457758068,15.0286603,1810.1,1810.0,3.72018657]
[1746457758840,25.2386603,1810.1,1810.0,3.72018657]
[1746457759066,44.20240093,1810.1,1810.0,2.8210162]
[1746457760173,44.20240093,1810.1,1808.8,6.14]
[1746457760174,5.52822157,1808.9,1808.8,6.14]
[1746457760338,5.52822157,1808.9,1808.6,6.14]
[1746457760339,5.52844448,1808.9,1808.6,6.14]
[1746457760874,5.5282232,1808.9,1808.6,6.27743503]
[1746457761288,5.52730802,1809.2,1808.6,6.27743503]
[1746457761583,5.52883286,1808.7,1808.6,0.13743503]
[1746457764842,5.52763732,1809.1,1808.6,0.13743503]
[1746457765060,5.52883286,1808.7,1808.6,0.13743503]
[1746457765448,5.52870435,1808.8,1808.6,0.13743503]
[1746457766158,5.52871338,1808.8,1808.6,0.13743503]
[1746457766361,11.05752082,1808.8,1808.6,0.13743503]
[1746457766554,5.52841629,1808.9,1808.6,0.13743503]
[1746457766770,5.52852988,1808.8,1808.6,0.91773503]
[1746457767374,5.52883286,1808.7,1808.6,0.91773503]
[1746457768052,5.52869474,1808.8,1808.6,0.91773503]
[1746457768549,5.52811476,1809.0,1808.7,5.95410365]
[1746457768782,11.05628943,1809.0,1808.7,5.95410365]
[1746457768980,11.05628649,1809.0,1808.8,0.1260943]
[1746457769483,5.52811476,1809.0,1808.8,0.1260943]
[1746457769851,11.05627906,1809.0,1808.8,0.1260943]
[1746457770043,5.52811476,1809.0,1808.8,0.1260943]
[1746457770245,5.52822157,1808.9,1808.8,0.1260943]
[1746457771385,6.63383611,1808.9,1808.8,0.1260943]
[1746457771689,5.52883286,1808.7,1808.6,6.14]
[1746457771854,5.52883286,1808.7,1808.6,6.26714551]
[1746457772555,5.52883286,1808.7,1808.6,0.12714551]
[1746457773087,5.52905417,1808.7,1808.6,0.1280808]
[1746457773289,5.52924501,1808.6,1808.3,5.95410365]
[1746457773585,5.52924501,1808.6,1808.4,0.12869239]
[1746457773986,5.52924501,1808.6,1808.3,12.09410365]
[1746457774190,5.52924501,1808.6,1808.5,0.12849663]
[1746457774656,5.52924501,1808.6,1808.3,12.09410365]
[1746457774855,5.52924501,1808.6,1808.4,0.12869239]
[1746457775292,5.52924501,1808.6,1808.3,12.09410365]
[1746457775581,5.52924501,1808.6,1808.4,0.12869239]
[1746457775964,11.05862294,1808.6,1808.3,12.09410365]
[1746457776181,5.52946293,1808.5,1808.3,12.09410365]
[1746457776375,5.52931973,1808.6,1808.3,12.09410365]
[1746457776586,11.05869241,1808.6,1808.3,12.09410365]
[1746457776793,11.05874562,1808.6,1808.3,12.09410365]
[1746457777297,11.05873644,1808.6,1808.3,12.09410365]
[1746457777465,5.52931973,1808.6,1808.3,12.09410365]
[1746457779025,11.3689902,1808.9,1808.5,5.95410365]
[1746457779187,5.84061454,1808.9,1808.3,6.14]
[1746457779376,11.05925901,1808.5,1808.3,6.14]
[1746457779573,5.52975005,1808.4,1808.3,6.14]
[1746457780015,5.52961947,1808.5,1808.3,6.14]
[1746457780215,5.52975005,1808.4,1808.3,6.14]
[1746457782225,5.52975005,1808.4,1808.3,6.26945465]
[1746457782515,6.63568253,1808.4,1808.3,6.26945465]
[1746457783475,6.63568253,1808.4,1808.3,0.12945465]
[1746457783716,5.53081237,1808.1,1807.9,12.90640365]
[1746457783879,5.53081237,1808.1,1807.9,15.90640365]
[1746457783880,5.53097345,1808.0,1807.9,15.90640365]
[1746457784084,5.53097345,1808.0,1807.9,3.0]
[1746457784287,5.53097345,1808.0,1807.8,12.09410365]
[1746457784509,5.53081237,1808.1,1807.8,12.09410365]
[1746457784710,6.08389361,1808.1,1807.8,12.09410365]
[1746457785011,0.55308124,1808.1,1807.8,12.09410365]
[1746457785404,6.08385572,1808.1,1807.8,12.09410365]
[1746457785717,11.61477069,1808.1,1807.8,12.09410365]
[1746457785919,5.53098946,1808.0,1807.8,12.09410365]
[1746457786285,5.53127938,1807.9,1807.8,12.09410365]
[1746457787213,5.53097952,1808.0,1807.8,12.09410365]
[1746457787419,6.08396987,1808.1,1807.8,12.09410365]
[1746457787613,11.61491684,1808.1,1807.8,12.09410365]
[1746457787908,5.53098002,1808.0,1807.8,12.09410365]
[1746457788229,5.53127938,1807.9,1807.8,12.09410365]
[1746457788521,5.53189135,1807.7,1807.6,1.1966768]
[1746457788886,5.53189135,1807.7,1807.6,0.4107768]
[1746457789629,5.53106454,1808.0,1807.6,10.19418045]
[1746457789833,5.5314124,1807.9,1807.8,5.95410365]
[1746457790138,5.53150144,1807.9,1807.6,7.19418045]
[1746457790329,5.53097345,1808.0,1807.6,12.72613508]
[1746457790486,6.69246367,1808.0,1807.6,12.72613508]
[1746457790889,5.53097345,1808.0,1807.6,12.72613508]
[1746457791089,5.53082181,1808.1,1807.8,5.95410365]
[1746457791334,5.5311444,1808.0,1807.8,5.95410365]
[1746457791541,5.53127938,1807.9,1807.8,5.95410365]
[1746457791750,5.53127938,1807.9,1807.7,6.14]
[1746457791931,6.08471329,1807.8,1807.7,6.14]
[1746457793507,4.745,1808.3,1807.7,12.09410365]
[1746457793722,5.53114631,1808.0,1807.7,12.09410365]
[1746457794844,11.06237039,1808.0,1807.7,12.09410365]
[1746457795004,5.53154045,1807.9,1807.7,6.14]
[1746457795455,5.53109833,1808.0,1807.7,6.14]
[1746457795621,5.53082674,1808.1,1807.7,11.48590032]
[1746457795810,6.63696032,1808.1,1807.7,11.48590032]
[1746457796146,5.53100499,1808.0,1807.7,5.95410365]
[1746457797050,5.53100499,1808.0,1807.8,2.70083747]
[1746457797348,5.53127938,1807.9,1807.8,2.82643202]
[1746457797639,5.53100499,1808.0,1807.8,2.82643202]
[1746457797640,11.06245831,1808.0,1807.8,2.82643202]
[1746457797963,5.5311895,1808.0,1807.8,2.82643202]
[1746457798110,6.19492181,1808.0,1807.8,2.82643202]
[1746457798299,5.53127938,1807.9,1807.8,2.82643202]
[1746457798807,6.19492181,1808.0,1807.8,0.12559455]
[1746457799112,5.5311895,1808.0,1807.8,0.12559455]
[1746457799316,5.53078647,1808.1,1807.8,0.88029455]
[1746457799512,5.53093175,1808.1,1807.8,0.88029455]
[1746457799712,5.53107188,1808.0,1807.8,0.88029455]
[1746457800244,5.5305151,1808.2,1807.9,5.95410365]
[1746457800413,6.55806661,1808.2,1807.9,5.95410365]
[1746457800606,5.5299164,1808.4,1808.2,0.8047]
[1746457800833,11.05996659,1808.4,1808.2,0.8047]
[1746457801033,5.5299164,1808.4,1808.3,0.1252209]
[1746457801433,5.52960552,1808.5,1808.3,6.07932455]
[1746457801606,5.5289688,1808.7,1808.3,11.60926846]
[1746457801806,5.5289688,1808.7,1808.3,6.07932455]
[1746457801807,11.05860053,1808.6,1808.3,6.07932455]
[1746457802008,5.52916435,1808.6,1808.3,6.07932455]
[1746457802337,5.52944466,1808.5,1808.3,6.07932455]
[1746457802516,5.52936508,1808.6,1808.3,6.07932455]
[1746457802714,5.52914063,1808.6,1808.3,12.21932455]
[1746457802914,5.52913856,1808.6,1808.3,12.21932455]
[1746457803117,5.52913856,1808.6,1808.3,6.2652209]
[1746457803118,5.52975005,1808.4,1808.3,6.2652209]
[1746457803531,6.18494433,1808.6,1808.3,12.21932455]
[1746457803728,11.71437252,1808.6,1808.3,13.03962455]
[1746457803909,5.52948262,1808.5,1808.3,13.03962455]
[1746457804942,11.05868914,1808.6,1808.3,13.03962455]
[1746457805237,5.52946478,1808.5,1808.3,13.03962455]
[1746457806207,5.52929435,1808.6,1808.3,13.03962455]
[1746457806540,11.05869779,1808.6,1808.3,13.03962455]
[1746457807013,5.52929435,1808.6,1808.3,13.03962455]
[1746457807538,5.52954899,1808.5,1808.3,6.89962455]
[1746457808052,5.52929435,1808.6,1808.3,6.89962455]
[1746457808211,5.52929435,1808.6,1808.3,12.42967606]
[1746457808413,5.52946608,1808.5,1808.3,6.89962455]
[1746457809654,5.52946608,1808.5,1808.3,6.07932455]
[1746457809811,5.52929121,1808.6,1808.3,6.07932455]
[1746457810016,5.52947209,1808.5,1808.3,6.07932455]
[1746457810216,5.52947209,1808.5,1808.3,0.1252209]
[1746457810543,5.52975005,1808.4,1808.3,0.1252209]
[1746457810857,5.53014139,1808.3,1808.1,6.73010365]
[1746457811355,5.53036168,1808.2,1808.1,6.73010365]
[1746457811553,5.53066755,1808.1,1807.8,4.745]
[1746457811761,5.53066755,1808.1,1807.7,12.84480365]
[1746457811762,5.53158535,1807.8,1807.7,12.84480365]
[1746457812126,5.53158535,1807.8,1807.7,13.0126632]
[1746457813245,5.53158535,1807.8,1807.7,0.16785955]
[1746457816884,5.53149337,1807.9,1807.7,6.1219632]
[1746457817048,5.53158535,1807.8,1807.7,6.1219632]
[1746457817253,5.53158535,1807.8,1807.7,0.16785955]
[1746457817488,6.63789322,1807.8,1807.7,0.16785955]
[1746457818760,5.53189135,1807.7,1807.6,0.4107768]
[1746457819079,5.53189135,1807.7,1807.6,0.58321983]
[1746457820170,5.53158535,1807.8,1807.6,6.53732348]
[1746457820369,5.53143948,1807.9,1807.6,6.53732348]
[1746457820576,0.55306676,1808.0,1807.8,5.95410365]
[1746457820577,5.53111066,1808.0,1807.8,5.95410365]
[1746457820775,5.53111066,1808.0,1807.9,0.17156143]
[1746457821168,11.06175922,1808.1,1807.9,0.17156143]
[1746457821374,5.53097345,1808.0,1807.9,0.17156143]
[1746457822583,5.53153947,1807.9,1807.7,13.44510365]
[1746457822784,5.53083392,1808.1,1807.8,0.17185526]
[1746457822977,5.5311641,1808.0,1807.8,0.17185526]
[1746457823284,5.5305777,1808.2,1807.9,6.50410365]
[1746457823461,3.72330832,1808.5,1808.1,5.95410365]
[1746457823666,5.53026882,1808.3,1808.1,5.95410365]
[1746457823867,5.53036168,1808.2,1808.1,3.21993711]
[1746457825867,5.53036168,1808.2,1808.0,9.5482432]
[1746457827251,5.53036168,1808.2,1808.1,0.17427335]
[1746457828285,5.53036168,1808.2,1808.1,2.94608901]
[1746457829886,6.63641796,1808.2,1808.1,0.17427335]
[1746457830261,5.53066755,1808.1,1808.0,2.7726721]
[1746457831694,5.53066755,1808.1,1807.9,6.69]
[1746457832070,5.53066755,1808.1,1808.0,0.24347057]
[1746457837491,5.84148751,1808.1,1808.0,0.24347057]
[1746457837680,6.97867243,1808.1,1808.0,0.24347057]
[1746457838001,6.66785247,1808.1,1808.0,0.24347057]
[1746457838964,6.97872193,1808.1,1808.0,0.24347057]
[1746457839467,5.84153701,1808.1,1808.0,0.24347057]
[1746457839898,5.84177809,1808.1,1808.0,0.24347057]
[1746457840299,5.84177696,1808.1,1808.0,0.24347057]
[1746457842002,0.31110941,1808.1,1808.0,1.06467057]
[1746457842177,5.84177696,1808.1,1808.0,3.83734267]
[1746457842378,11.06098906,1808.2,1808.0,3.83734267]
[1746457842703,5.53066755,1808.1,1808.0,3.83734267]
[1746457843279,5.53036168,1808.2,1808.0,3.83734267]
[1746457843668,11.06102268,1808.2,1808.0,3.83734267]
[1746457843880,5.53066755,1808.1,1808.0,3.83734267]
[1746457845302,5.53057584,1808.2,1808.0,3.83734267]
[1746457845469,11.06119879,1808.2,1808.0,3.83734267]
[1746457845670,5.53057584,1808.2,1808.0,3.83734267]
[1746457845893,5.52969452,1808.5,1808.2,6.0803616]
[1746457846202,5.52944429,1808.5,1808.4,3.22015031]
[1746457846572,5.84059549,1808.5,1808.4,3.45994632]
[1746457847284,5.84059549,1808.5,1808.4,0.23979601]
[1746457847782,0.3111512,1808.5,1808.4,6.14]
[1746457847995,5.84059549,1808.5,1808.4,6.37979601]
[1746457848807,6.97758241,1808.5,1808.4,6.37979601]
[1746457852720,6.97758241,1808.5,1808.4,0.23979601]
[1746457853103,5.53036168,1808.2,1808.1,6.14]
[1746457853423,5.84151288,1808.2,1808.1,6.14]
[1746457855391,0.3111512,1808.2,1808.1,6.14]
[1746457855887,11.06047605,1808.3,1808.1,6.14]
[1746457856088,5.53018998,1808.3,1808.2,3.22015031]
[1746457856398,0.31109855,1808.3,1808.2,3.77015031]
[1746457856597,5.8411544,1808.3,1808.2,4.55965031]
[1746457857219,0.31109855,1808.3,1808.2,5.84887006]
[1746457857392,0.31109855,1808.3,1808.2,2.62871975]
[1746457857591,0.31109855,1808.3,1808.2,1.55875472]
[1746457857791,5.52992588,1808.4,1808.3,0.55]
[1746457857991,5.52992588,1808.4,1808.3,3.98920141]
[1746457858205,5.84101741,1808.4,1808.3,3.98920141]
[1746457858600,5.84101741,1808.4,1808.3,3.43920141]
[1746457859530,6.97807796,1808.4,1808.3,3.43920141]
[1746457859722,6.97807796,1808.4,1808.3,0.2190511]
[1746457860111,6.97807209,1808.4,1808.3,0.2190511]
[1746457862620,6.97810751,1808.4,1808.3,0.2190511]
[1746457862795,6.97810751,1808.4,1808.3,1.0198511]
[1746457862796,5.84104696,1808.4,1808.3,1.0198511]
[1746457863130,5.84104696,1808.4,1808.3,0.2190511]
[1746457863331,0.31112108,1808.4,1808.3,0.7690511]
[1746457863493,0.31112108,1808.4,1808.3,11.2103372]
[1746457863824,5.52894925,1808.7,1808.3,11.2103372]
[1746457864123,5.52894925,1808.7,1808.5,3.77015031]
[1746457864528,5.52894925,1808.7,1808.6,0.21668438]
[1746457865027,5.83995217,1808.7,1808.6,0.21668438]
[1746457867003,6.9768134,1808.7,1808.6,0.21668438]
[1746457867813,5.52967201,1808.5,1808.3,3.0]
[1746457868009,5.52967201,1808.5,1808.4,0.21709151]
[1746457868230,5.52967201,1808.5,1808.3,3.0]
[1746457868431,5.52967201,1808.5,1808.4,0.21709151]
[1746457868635,5.52927224,1808.6,1808.4,3.43724182]
[1746457868830,11.05866678,1808.6,1808.4,3.22015031]
[1746457869137,5.52896651,1808.7,1808.5,1.00578793]
[1746457869331,5.52870905,1808.8,1808.6,3.22015031]
[1746457869496,5.52883286,1808.7,1808.6,3.22015031]
[1746457869701,5.83976075,1808.7,1808.6,3.22015031]
[1746457870018,5.83976075,1808.7,1808.5,0.7889]
[1746457870019,5.52913856,1808.6,1808.5,1.3389]
[1746457870222,5.52913856,1808.6,1808.5,0.55]
[1746457870714,5.52988064,1808.4,1808.2,6.14]
[1746457870907,5.53066755,1808.1,1808.0,6.8908]
[1746457871112,5.53049232,1808.2,1808.0,9.8908]
[1746457871332,5.53049232,1808.2,1808.1,0.55]
[1746457871507,5.53049232,1808.2,1808.1,3.22015031]
[1746457871713,5.52990342,1808.4,1808.2,0.55]
[1746457871899,5.52962142,1808.5,1808.3,4.05085031]
[1746457872099,5.52975005,1808.4,1808.3,4.60085031]
[1746457872512,5.52962142,1808.5,1808.3,4.60085031]
[1746457872715,5.52928479,1808.6,1808.4,0.55]
[1746457872948,5.52928479,1808.6,1808.5,3.22015031]
[1746457873303,5.52944429,1808.5,1808.4,0.55]
[1746457873500,5.52975005,1808.4,1808.3,6.79807469]
[1746457873739,5.52975005,1808.4,1808.3,3.29722438]
[1746457874251,5.84092861,1808.4,1808.3,3.29722438]
[1746457874463,0.31117856,1808.4,1808.3,3.29722438]
[1746457875042,11.05867766,1808.6,1808.3,10.05250137]
[1746457875234,5.52927461,1808.6,1808.3,10.05250137]
[1746457875540,5.52957288,1808.5,1808.3,10.05250137]
[1746457875750,5.52927461,1808.6,1808.3,10.05250137]
[1746457876311,5.52901537,1808.7,1808.3,9.25790137]
[1746457876516,6.39343044,1808.6,1808.5,0.55]
[1746457877835,5.52944429,1808.5,1808.4,6.69]
[1746457878346,5.84060619,1808.5,1808.4,6.69]
[1746457879640,5.84060619,1808.5,1808.4,0.55]
[1746457880824,0.3111619,1808.5,1808.4,0.55]
[1746457881028,11.05807086,1808.7,1808.5,0.55]
[1746457881228,5.52910167,1808.7,1808.5,0.55]
[1746457881547,5.52913856,1808.6,1808.5,0.55]
[1746457881760,5.84029064,1808.6,1808.5,0.55]
[1746457882860,0.31115208,1808.6,1808.5,0.55]
[1746457883061,0.31115208,1808.6,1808.5,0.8256]
[1746457883261,5.84029064,1808.6,1808.5,0.8256]
[1746457883575,0.31115208,1808.6,1808.5,0.8256]
[1746457883861,9.25127503,1809.0,1808.6,0.55]
[1746457883862,11.05741777,1808.8,1808.6,0.55]
[1746457884168,5.52822157,1808.9,1808.8,0.55]
[1746457884666,5.83936378,1808.9,1808.8,0.55]
[1746457885164,5.5285272,1808.8,1808.7,6.14]
[1746457885644,5.83966941,1808.8,1808.7,6.14]
[1746457886051,5.8397058,1808.8,1808.7,6.14]
[1746457887343,5.8397058,1808.8,1808.7,6.32011146]
[1746457888724,5.8397058,1808.8,1808.7,0.18011146]
[1746457889028,5.52913856,1808.6,1808.5,3.0]
[1746457889257,5.52957902,1808.5,1808.4,3.0]
[1746457889434,5.52957902,1808.5,1808.4,3.55]
[1746457890030,5.52957902,1808.5,1808.4,4.3183]
[1746457890233,5.35076387,1808.5,1808.4,4.3183]
[1746457890749,5.18704111,1808.5,1808.4,4.3183]
[1746457891258,5.03696191,1808.5,1808.4,4.3183]
[1746457891462,4.89938929,1808.5,1808.4,4.3183]
[1746457891661,4.89938929,1808.5,1808.4,1.3183]
[1746457891827,4.77317148,1808.5,1808.4,1.3183]
[1746457892272,5.35563742,1808.6,1808.5,3.55]
[1746457892433,5.35563742,1808.6,1808.5,9.69]
[1746457892755,5.35563742,1808.6,1808.5,6.69]
[1746457892959,5.52895254,1808.7,1808.5,6.69]
[1746457893463,5.52836842,1808.9,1808.7,4.3168]
[1746457893625,5.52836842,1808.9,1808.7,5.3445477]
[1746457893964,3.72330832,1809.0,1808.9,3.0]
[1746457894133,3.72330832,1809.0,1808.9,9.86722157]
[1746457894337,3.72330832,1809.0,1808.9,4.339]
[1746457894540,3.72330832,1809.0,1808.9,16.41409355]
[1746457894750,3.72330832,1809.0,1808.9,20.25982952]
[1746457895059,3.72330832,1809.0,1808.9,20.77538147]
[1746457895227,3.72330832,1809.0,1808.9,15.2471599]
[1746457895942,3.72330832,1809.0,1808.9,26.73038484]
[1746457896685,3.72330832,1809.0,1808.9,36.81038484]
[1746457897884,11.05364757,1809.4,1809.2,1.3335]
[1746457898046,5.52670987,1809.4,1809.3,3.0]
[1746457898447,6.63203739,1809.4,1809.3,3.0]
[1746457898982,5.52791597,1809.0,1808.9,8.13787198]
[1746457899184,5.52791597,1809.0,1808.9,3.95687198]
[1746457899344,5.52791597,1809.0,1808.9,3.0]
[1746457899544,5.5285272,1808.8,1808.6,7.46045195]
[1746457899853,5.5285272,1808.8,1808.6,9.76834553]
[1746457900042,5.52883286,1808.7,1808.6,1.22957028]
[1746457900246,5.5285272,1808.8,1808.6,0.42467028]
[1746457900446,5.5285272,1808.8,1808.7,0.55]
[1746457900663,5.5285272,1808.8,1808.6,0.964567]
[1746457900865,5.5285272,1808.8,1808.6,3.964567]
[1746457901540,5.52913856,1808.6,1808.5,5.95500337]
[1746457901752,5.52944429,1808.5,1808.4,0.8049]
[1746457901957,5.52944429,1808.5,1808.3,12.61055532]
[1746457902175,5.52944429,1808.5,1808.2,4.739]
[1746457902176,5.5298452,1808.4,1808.2,5.5605]
[1746457902353,5.52963066,1808.5,1808.2,2.58705034]
[1746457902554,5.52934485,1808.6,1808.4,3.0]
[1746457902764,5.52944429,1808.5,1808.4,3.55]
[1746457903476,5.52913856,1808.6,1808.5,0.55]
[1746457903652,5.52910977,1808.7,1808.5,13.82468507]
[1746457903852,5.52910977,1808.7,1808.6,6.14]
[1746457904052,5.52910977,1808.7,1808.6,6.69]
[1746457906442,5.5286539,1808.8,1808.6,9.69]
[1746457906748,5.5286539,1808.8,1808.7,3.55]
[1746457907366,5.5286539,1808.8,1808.7,3.7560496]
[1746457908207,5.5286539,1808.8,1808.7,0.7560496]
[1746457909809,5.5286539,1808.8,1808.7,6.9990744]
[1746457912408,5.83945313,1808.8,1808.7,6.9990744]
[1746457914703,5.83945313,1808.8,1808.7,6.4490744]
[1746457915796,5.83945313,1808.8,1808.7,0.2060496]
[1746457916009,5.83945313,1808.8,1808.7,0.3090744]
[1746457917707,5.83945313,1808.8,1808.7,0.2060496]
[1746457918077,6.97623662,1808.8,1808.7,0.2060496]
[1746457918487,5.83945313,1808.8,1808.7,0.2060496]
[1746457922481,5.83965929,1808.8,1808.7,0.2060496]
[1746457924387,5.52944429,1808.5,1808.4,9.35902368]
[1746457924702,5.52944429,1808.5,1808.4,9.56673277]
[1746457925017,5.84044968,1808.5,1808.4,9.56673277]
[1746457929332,5.84044968,1808.5,1808.4,10.11673277]
[1746457929512,5.84044968,1808.5,1808.4,11.96350605]
[1746457929714,5.84044968,1808.5,1808.4,11.18340605]
[1746457930031,5.84044968,1808.5,1808.4,10.11673277]
[1746457930339,5.84044968,1808.5,1808.4,3.42673277]
[1746457931346,5.84044968,1808.5,1808.4,3.97673277]
[1746457931508,5.84044968,1808.5,1808.4,4.74333277]
[1746457931830,5.84044968,1808.5,1808.4,5.21766605]
[1746457932127,5.84044968,1808.5,1808.4,4.74333277]
[1746457933806,0.31100539,1808.5,1808.4,13.88333277]
[1746457934001,0.31100539,1808.5,1808.4,19.41308282]
[1746457934201,5.52811089,1809.0,1808.9,0.55]
[1746457934412,5.52791597,1809.0,1808.9,6.89764511]
[1746457935141,9.25111693,1809.1,1808.9,6.89764511]
[1746457935349,3.72330832,1809.1,1809.0,9.90902368]
[1746457935644,3.72330832,1809.1,1809.0,10.11626186]
[1746457936012,9.25091873,1809.1,1809.0,10.11626186]
[1746457936606,3.72330832,1809.1,1809.0,10.11626186]
[1746457936819,3.72330832,1809.1,1809.0,10.92256186]
[1746457937122,3.72330832,1809.1,1809.0,12.12395373]
[1746457939037,5.52732176,1809.2,1809.1,0.55]
[1746457939236,5.52720963,1809.3,1809.1,0.75683129]
[1746457939442,5.52720963,1809.3,1809.2,3.21902368]
[1746457939912,5.52720963,1809.3,1809.2,3.42544813]
[1746457940113,5.52688354,1809.4,1809.3,0.55]
[1746457940343,5.52688354,1809.4,1809.3,6.69]
[1746457940540,5.52688354,1809.4,1809.3,6.89601766]
[1746457940746,5.52618398,1809.6,1809.3,7.65901766]
[1746457940922,5.52618398,1809.6,1809.5,3.76902368]